Cogmind - Beta 15 @@@ ROGUE MODE // 2025.06.14 @ 18:12:08 Player: quak Result: Destroyed by H-55 Commando with Assault Rifle Performance ------------- Evolutions (3) 1500 Regions Visited (5) 1000 Robots Destroyed (79) 395 Value Destroyed (2284) 2284 Prototype IDs (5) 100 Alien Tech Used (0) 0 Bonus (0) 0 TOTAL SCORE: 5279 Bonus ------- None Cogmind --------- Core Integrity 0/700 Matter 260/300 Energy 100/100 System Corruption 1% Temperature Cool (3) Movement Flying (32) Location -7/Lower Caves Parts ------- > --- POWER (1) -------- (None) > --- PROPULSION (4) --- VTOL Module VTOL Module > --- UTILITY (6) ------ Launcher Guidance Computer Core Analyzer > --- WEAPON (2) ------- (None) > --- INVENTORY (5) ---- Light Angular Momentum Engine Transmission Jammer Gauss Cannon Peak State ------------ > --- POWER ------------ Nuclear Core > --- PROPULSION ------- Improved Titanium Leg Improved Titanium Leg Improved Titanium Leg > --- UTILITY ---------- High-capacity Storage Unit Improved Terrain Scanner Advanced Terrain Scan Processor Improved Light Armor Plating Improved Light Armor Plating > --- WEAPON ----------- Heavy Assault Rifle High-powered Shotgun > --- INVENTORY -------- Light Ion Engine Improved Titanium Leg Improved Heat Sink Large Storage Unit High-capacity Matter Pod Trap Scanner Improved Signal Interpreter Advanced Terrain Scan Processor Hardened Medium Armor Plating Hardened Medium Armor Plating Hacking Suite Heavy EM Shotgun Heavy EM Shotgun Subdweller Laser Advanced Beam Rifle Gatling Laser Gatling Laser EMP Blaster Grenade Launcher Datajack [Rating: 39] Favorites ----------- Power Light Nuclear Core Engine Light Ion Engine Power Core Light Nuclear Core Propulsion Improved Titanium Leg Treads Advanced Treads Leg Improved Titanium Leg Wheel Wheel Flight Unit VTOL Module Utility High-capacity Storage Unit Device Improved Terrain Scanner Storage High-capacity Storage Unit Processor Improved Signal Interpreter Hackware Hacking Suite Protection Improved Light Armor Plating Weapon Heavy EM Shotgun Energy Gun Heavy EM Shotgun Ballistic Gun Assault Rifle Ballistic Cannon Light Cannon Launcher Grenade Launcher Build | -11 -10 -10 -8 -7 -7 ------- Run | Yrd Mat Sub Mat Fac Low Slots Evolved 6 | . . . 4 2 . Power . | . . . . . . Propulsion 2 | . . . 1 1 . Utility 4 | . . . 3 1 . Weapon . | . . . . . . Parts Attached 84 | 4 13 6 39 15 7 Power 13 | 1 2 . 6 2 2 Engine 7 | 1 . . 3 1 2 Core 6 | . 2 . 3 1 . Reactor . | . . . . . . Propulsion 29 | 2 1 4 13 6 3 Treads 7 | . . . 7 . . Leg 4 | . . . 4 . . Wheel 8 | 2 1 4 1 . . Hover . | . . . . . . Flight 10 | . . . 1 6 3 Utility 24 | . 5 . 12 5 2 Device 11 | . 2 . 5 4 . Storage 2 | . 2 . . . . Processor 7 | . 1 . 3 1 2 Hackware 1 | . . . 1 . . Protection 3 | . . . 3 . . Artifact . | . . . . . . Weapon 18 | 1 5 2 8 2 . Energy Gun 7 | . . 1 5 1 . Energy Cannon . | . . . . . . Ballistic Gun 8 | 1 4 1 2 . . Ballistic Cannon 2 | . 1 . . 1 . Launcher 1 | . . . 1 . . Special Weapon . | . . . . . . Impact Weapon . | . . . . . . Slashing Weapon . | . . . . . . Piercing Weapon . | . . . . . . Special Melee Weapon . | . . . . . . Unidentified Prototypes 5 | . . . 3 2 . Parts Lost 34 | . 3 5 13 6 7 Power 10 | . 1 1 5 1 2 Propulsion 10 | . . 1 2 3 4 Utility 7 | . . 2 3 1 1 Weapon 7 | . 2 1 3 1 . Highest Loss Streak 7 | . 2 2 7 3 3 To Critical Strikes . | . . . . . . Average Backups 11 | . 8 11 17 1 2 Power . | . . . . . . Propulsion 3 | . 5 6 3 . . Utility 4 | . 3 3 7 . . Weapon 2 | . . . 5 . 1 Tool/Special . | . . . . . . Unused Backups 26 | . 1 1 22 . 2 Power . | . . . . . . Propulsion 7 | . . 1 6 . . Utility 9 | . 1 . 7 . 1 Weapon 6 | . . . 5 . 1 Tool/Special 4 | . . . 4 . . Average Slot Usage (%) 84 | . 93 96 91 30 34 Engine 2 | . 1 . 3 1 2 Core 7 | . 12 12 5 . 2 Treads 6 | . . . 13 . . Leg 5 | . . . 12 1 . Wheel 11 | . 28 27 . . . Flight 2 | . . . . 11 22 Device 8 | . 3 11 8 7 3 Storage 8 | . 10 14 8 . . Processor 5 | . 10 . 6 5 2 Hackware 1 | . . . 3 . . Protection 5 | . . . 11 . . Energy Gun 5 | . . 5 8 . . Ballistic Gun 11 | . 20 18 8 . . Ballistic Cannon 1 | . 5 4 . . . Peak Build Rating 39 | 4 11 17 39 27 23 Average Rating 21 | 3 9 13 33 15 12 On Entrance 6 | . 4 10 10 1 13 Naked Turns 29 | . . . 29 . . Heaviest Build 60 | 4 51 54 60 13 9 Greatest Support 69 | 20 20 40 69 22 17 Greatest Overweight (x) 2 | . 2 2 2 1 . Average Overweight (x) . | . 1 1 . . . Largest Inventory Capacity 20 | 5 20 20 20 5 5 Average Capacity 16 | 5 15 20 19 5 5 Most Carried 20 | 4 14 14 20 4 5 Average Carried 12 | . 8 12 18 1 2 Final Capacity 20 | 5 20 20 5 5 5 Final Carried 14 | 4 12 14 5 4 3 Class Distribution -------------------- 79% | Mutant 12% | Scavenger-Mutant 7% | Sprinter Dominant Class ---------------- Mutant | -10/Materials Scavenger-Mutant | -10/Subcaves Mutant | -8/Materials Mutant | -7/Factory Sprinter | -7/Lower Caves Resources | -11 -10 -10 -8 -7 -7 ----------- Run | Yrd Mat Sub Mat Fac Low Matter Collected 2407 | 163 644 197 1213 70 120 Remotely 504 | . . . 504 . . Salvage Created 2778 | 81 585 147 1965 . . Parts 175 | 9 44 11 111 . . Haulers Intercepted 6 | . 2 . 4 . . Recyclers Shooed 1 | . . . 1 . . Parts Field Recycled . | . . . . . . Retrieved Matter . | . . . . . . Parts Self-Destructed 3 | . . 3 . . . Prevented . | . . . . . . Kills | -11 -10 -10 -8 -7 -7 ------- Run | Yrd Mat Sub Mat Fac Low Combat Hostiles Destroyed 61 | 1 12 5 42 1 . Melee 1 | . . . . 1 . Guns 54 | 1 10 2 41 . . Cannons 5 | . 2 3 . . . Classes Destroyed 14 | 3 3 2 5 1 . Worker 3 | 1 . . 2 . . Tunneler 3 | 2 1 . . . . Hauler 6 | . 2 . 4 . . Recycler 1 | . . . 1 . . Operator 1 | . . . 1 . . Watcher 4 | . 1 . 3 . . Swarmer 18 | . 3 . 15 . . Grunt 24 | 1 9 . 14 . . Brawler 1 | . . . 1 . . Sentry 10 | . . 1 9 . . Specialist 2 | . . . 2 . . Programmer 1 | . . . . 1 . Heavy 1 | . . . 1 . . Subdweller 4 | . . 4 . . . Best Kill Streak 5 | 2 4 2 5 1 . Combat Bots Only 4 | 1 4 2 4 1 . Max Kills in Single Turn 2 | 1 1 1 2 1 . Gunslinging 1 | . . . 1 . . Exploded . | . . . . . . Melee 1 | . . . . 1 . Uniques/NPCs Destroyed . | . . . . . . Combat | -11 -10 -10 -8 -7 -7 -------- Run | Yrd Mat Sub Mat Fac Low Hostile Shots Fired 574 | 7 54 49 265 154 45 Missed 199 | . 20 18 71 70 20 Hits 375 | 7 34 31 194 84 25 Projectile 375 | 7 34 31 194 84 25 Critical Strikes 16 | . . 1 10 5 . Damage Taken 5385 | 78 464 589 2823 1035 396 Core 1412 | 21 98 129 463 535 166 Absorbed by Shields . | . . . . . . Regen/Repaired (Parts) 171 | . 29 . 142 . . Core Remaining (%) 35 | 91 . . 15 . . Volleys Fired 300 | 39 76 23 155 7 . Largest 2 | 1 2 2 2 1 . Hottest 100 | 20 50 90 100 50 . Shots Fired 487 | 39 128 45 268 7 . Gun 466 | 39 124 29 267 7 . Cannon 20 | . 4 16 . . . Launcher 1 | . . . 1 . . Special . | . . . . . . Kinetic 396 | 39 128 38 191 . . Thermal 7 | . . 7 . . . Explosive 1 | . . . 1 . . Electromagnetic 83 | . . . 76 7 . Robot Hit Streak 21 | 4 8 21 15 7 . Robot Miss Streak 7 | 3 5 2 7 2 . Penetration Max . | . . . . . . Secondary Targets 11 | . 1 . 10 . . Max Gunslinging Chain 1 | . 1 . 1 . . Shots Hit Robots 327 | 22 76 39 184 6 . Core Hits 169 | 9 31 10 103 16 . Critical Kills 1 | . . . 1 . . Critical Parts Destroyed 2 | 1 1 . . . . Critical Strikes 5 | 1 2 1 1 . . Destroy 3 | 1 1 . 1 . . Blast 2 | . 1 1 . . . Melee Attacks . | . . . . . . Impact . | . . . . . . Slashing . | . . . . . . Piercing . | . . . . . . Sneak Attacks . | . . . . . . Combat Hostiles . | . . . . . . Follow-up Attacks . | . . . . . . Damage Inflicted 5675 | 200 933 671 3816 55 . Guns 5017 | 200 886 401 3504 26 . Cannons 317 | . 47 270 . . . Explosions 312 | . . . 312 . . Melee . | . . . . . . Ramming 29 | . . . . 29 . Kinetic 4056 | 200 933 592 2331 . . Thermal 248 | . . 79 169 . . Explosive 143 | . . . 143 . . Electromagnetic 1199 | . . . 1173 26 . Impact . | . . . . . . Slashing . | . . . . . . Piercing . | . . . . . . Highest Corruption 7 | . 7 7 . 3 1 Average Corruption 4 | . 2 7 . 2 1 Corruption Purged 3 | . . . . 3 . Corruption Blocked . | . . . . . . Effects 46 | . 6 33 . 3 4 Message Errors 17 | . 2 13 . 2 . Matter Fused 11 | . 2 7 . 1 1 Heat Flow Errors 5 | . . 3 . . 2 Energy Discharges 3 | . 2 1 . . . Parts Rejected 2 | . . 1 . . 1 Data Loss (minor) 5 | . . 5 . . . Data Loss (major) 1 | . . 1 . . . Misfires 1 | . . 1 . . . Weapon Failures 1 | . . 1 . . . Overload Shots . | . . . . . . Overflow Damage 16 | . . . 16 . . Projectiles . | . . . . . . Explosions 16 | . . . 16 . . Melee . | . . . . . . Knockbacks 8 | . 1 7 . . . Impact . | . . . . . . Kinetic 8 | . 1 7 . . . Secondary . | . . . . . . Self-Inflicted Damage 57 | . . . 57 . . Shots 2 | . . . 2 . . Rammed . | . . . . . . Targets Rammed 23 | . . . . 23 . Kicked 23 | . . . . 23 . Crushed . | . . . . . . Highest Temperature 454 | 12 10 227 454 . 247 Average Temperature 78 | 7 3 77 95 . 109 Received Heat Transfer 1686 | 42 225 150 1089 72 108 Effects 3 | . . . 3 . . Shutdowns 1 | . . . 1 . . Energy Bleed 1 | . . . 1 . . Matter Decay 1 | . . . 1 . . Siege Activations . | . . . . . . Martial Activations . | . . . . . . Shielding Activations . | . . . . . . Robots Disrupted . | . . . . . . Combat Hostiles . | . . . . . . Robots Corrupted 1 | . . . 1 . . Combat Hostiles 1 | . . . 1 . . Parts Fried 11 | . . . 11 . . Impact Corruptions . | . . . . . . Robots Melted . | . . . . . . Combat Hostiles . | . . . . . . Parts Melted 1 | . . 1 . . . Heat Transferred 300 | . . 100 200 . . Parts Sabotaged . | . . . . . . Parts Stolen . | . . . . . . Parts Stripped . | . . . . . . Power Chain Reactions 3 | . . . 3 . . Alert | -11 -10 -10 -8 -7 -7 ------- Run | Yrd Mat Sub Mat Fac Low Maximum Alert Level 2 | . . . 2 . . Low Security (%) 71 | 100 100 . 52 100 . Level 1 27 | . . . 45 . . Level 2 1 | . . . 2 . . Level 3 . | . . . . . . Level 4 . | . . . . . . Level 5 . | . . . . . . High Security . | . . . . . . Max Security . | . . . . . . Peak Influence 406 | 20 103 . 406 151 . Initial 151 | . . . . 151 . Average 133 | 2 30 . 196 68 . Influence Increases 2295 | 36 362 20 1363 214 300 Destroy 0b10 Robot/C 1140 | 20 240 20 840 20 . Destroy 0b10 Robot/NC 90 | 15 20 . 55 . . Destroy Leader 270 | . 56 . 204 10 . Successful Hack 90 | . 14 . 72 4 . Disable Machine 60 | . 15 . 45 . . Destroy Structure 30 | 1 2 . 27 . . Lose Combat Pursuer 615 | . 15 . 120 180 300 Influence Decreases 2160 | 36 362 20 1028 521 193 Entered New Map 195 | . . . . 184 11 Time Decay 1271 | 36 258 20 598 222 137 Lost Part 265 | . 30 . 130 60 45 Purge Threat 429 | . 74 . 300 55 . Squads Dispatched 16 | . 2 . 7 7 . Investigation 8 | . 2 . 3 3 . Extermination 2 | . . . . 2 . Reinforcement 6 | . . . 4 2 . Assault . | . . . . . . Garrison . | . . . . . . Intercept . | . . . . . . Searches Triggered . | . . . . . . Construction Impeded 1 | . . . 1 . . Haulers Reinforced . | . . . . . . Active Scanning Responses . | . . . . . . Cargo Convoy Interrupts . | . . . . . . Stealth | -11 -10 -10 -8 -7 -7 --------- Run | Yrd Mat Sub Mat Fac Low Distress Signals 8 | . 2 . 6 . . Communications Jammed . | . . . . . . Distress Signals . | . . . . . . Times Spotted 138 | 1 23 8 64 19 23 Peak Tracking Total 9 | 1 5 2 9 7 7 Tactical Retreats 24 | . 1 2 6 7 8 Traps | -11 -10 -10 -8 -7 -7 ------- Run | Yrd Mat Sub Mat Fac Low Traps Triggered 7 | . 6 . 1 . . Indirectly . | . . . . . . Trap Hack Attempts . | . . . . . . Triggered . | . . . . . . Disarmed . | . . . . . . Reprogrammed . | . . . . . . Reused . | . . . . . . Traps Extracted . | . . . . . . Installed . | . . . . . . Triggered . | . . . . . . Machines | -11 -10 -10 -8 -7 -7 ---------- Run | Yrd Mat Sub Mat Fac Low Machines Disabled 4 | . 1 . 3 . . Max in Single Turn 1 | . 1 . 1 . . Machines Repaired . | . . . . . . Machines Dismantled . | . . . . . . Machines Sabotaged . | . . . . . . Overloaded Fab Kills . | . . . . . . Hacking | -11 -10 -10 -8 -7 -7 --------- Run | Yrd Mat Sub Mat Fac Low Machines Accessed 36 | . 10 1 15 8 2 Terminals 23 | . 8 . 9 6 . Fabricators 2 | . . . . 2 . Repair Stations 3 | . 1 . 2 . . Recycling Units 3 | . 1 . 2 . . Scanalyzers 2 | . . . 2 . . Garrison Access . | . . . . . . Total Hacks 104 | . 28 5 45 24 2 Successful 43 | . 7 5 24 5 2 Failed 61 | . 21 . 21 19 . Catastrophic 13 | . 3 . 6 4 . Database Lockouts . | . . . . . . Manual 38 | . 20 1 7 10 . Terminals 68 | . 22 . 28 18 . Fabricators 6 | . . . . 6 . Repair Stations 7 | . 2 . 5 . . Recycling Units 9 | . 4 . 5 . . Scanalyzers 7 | . . . 7 . . Garrison Access . | . . . . . . Terminal Hacks 24 | . 2 5 11 4 2 Record 13 | . . 5 5 3 . Open Door 2 | . . . . . 2 Terminal Index 1 | . . . 1 . . Unreport Threat 4 | . 1 . 2 1 . Recall Investigation 1 | . . . 1 . . Hauler Manifests 1 | . 1 . . . . Registered Components 1 | . . . 1 . . Registered Prototypes 1 | . . . 1 . . Fabricator Hacks 1 | . . . . 1 . Load Schematic 1 | . . . . 1 . Repair Station Hacks 6 | . 2 . 4 . . Scan Component 3 | . 1 . 2 . . Repair 3 | . 1 . 2 . . Recycling Unit Hacks 5 | . 1 . 4 . . Process 1 | . . . 1 . . Report Inventory 3 | . 1 . 2 . . Retrieve Matter 1 | . . . 1 . . Scanalyzer 5 | . . . 5 . . Insert Component 3 | . . . 3 . . Analyze 2 | . . . 2 . . Garrison Access Hacks . | . . . . . . Unauthorized Hacks 2 | . 2 . . . . Terminals . | . . . . . . Fabricators . | . . . . . . Repair Stations . | . . . . . . Recycling Units 2 | . 2 . . . . Reject 1 | . 1 . . . . Mask 1 | . 1 . . . . Scanalyzers . | . . . . . . Garrison Access . | . . . . . . Data Cores Recovered 1 | . . . 1 . . Used . | . . . . . . Hacking Detections 31 | . 9 . 14 8 . Full Trace Events 10 | . . . 7 3 . Feedback Events 1 | . . . . 1 . Corruption 1 | . . . . 1 . Feedback Blocked . | . . . . . . Robot Schematics Acquired . | . . . . . . Robots Built . | . . . . . . Authchips . | . . . . . . Time . | . . . . . . Total Robot Build Rating . | . . . . . . Part Schematics Acquired 2 | . . . 2 . . Parts Built . | . . . . . . Authchips . | . . . . . . Time . | . . . . . . Total Part Build Rating . | . . . . . . Parts Repaired 3 | . 1 . 2 . . Time 102 | . 26 . 76 . . Parts Recycled . | . . . . . . Recycled Matter 12 | . . . 12 . . Retrieved Matter 245 | . . . 245 . . Retrieved Components . | . . . . . . Parts Scanalyzed 3 | . . . 3 . . Part Schematics Acquired 2 | . . . 2 . . Parts Damaged 1 | . . . 1 . . Bothacking | -11 -10 -10 -8 -7 -7 ------------ Run | Yrd Mat Sub Mat Fac Low Used RIF Installer . | . . . . . . Robots Hacked . | . . . . . . Non-combat . | . . . . . . Combat . | . . . . . . Robot Hacks Applied . | . . . . . . Relay Couplers Released . | . . . . . . Fabnet Peak Effective % . | . . . . . . Robots Rewired . | . . . . . . Allies Hacked . | . . . . . . Hacks Repelled . | . . . . . . Allies | -11 -10 -10 -8 -7 -7 -------- Run | Yrd Mat Sub Mat Fac Low Total Allies . | . . . . . . Largest Group . | . . . . . . Highest-Rated Group . | . . . . . . Highest-Rated Ally . | . . . . . . Total Orders . | . . . . . . Ally Attacks . | . . . . . . Total Damage . | . . . . . . Kills . | . . . . . . Allies Corrupted . | . . . . . . Allies Melted . | . . . . . . Intel | -11 -10 -10 -8 -7 -7 ------- Run | Yrd Mat Sub Mat Fac Low Active Infowar (turns) 2808 | . 840 911 611 363 83 Sensors 380 | . 106 274 . . . Terrain 1206 | . 106 637 463 . . Traps 594 | . . . 171 350 73 T.N.C. 732 | . 732 . . . . Jamming 104 | . . . . 22 82 Robot Analysis Total . | . . . . . . Derelict Logs Recovered 3 | . . 1 . . 2 Drone Launches . | . . . . . . Drone Recoveries . | . . . . . . Exploration | -11 -10 -10 -8 -7 -7 ------------- Run | Yrd Mat Sub Mat Fac Low Turns Passed 5426 | 171 972 1102 2414 461 306 Spaces Moved 4824 | 119 714 879 1315 852 945 Core 130 | 15 . . 57 58 . Treads 666 | . . . 666 . . Legs 582 | . . . 566 16 . Wheels 1723 | 104 714 879 26 . . Hover . | . . . . . . Flight 1723 | . . . . 778 945 Fastest Speed 26 | 50 80 107 50 28 26 Average Speed 86 | 76 99 114 134 37 28 Slowest Speed 320 | 80 110 120 320 130 35 Overloaded Moves . | . . . . . . Propulsion Burnouts . | . . . . . . Robots Hopped 9 | . . . . 7 2 Potential Cave-ins . | . . . . . . Cave-ins Triggered . | . . . . . . Exploration Rate (%) 60 | 5 94 56 88 25 92 Regions Visited 5 Branch Regions 2 Pre-discovered Areas 2 | . . . . . 2 Known Exits Taken 2 | . . 1 1 . . Unknown Exits Taken 3 | 1 1 . . 1 . Scrap Searched 8 | . . . . . 8 Spaces Dug . | . . . . . . Terrain Destroyed 28 | . . . 28 . . Melee . | . . . . . . Projectile 2 | . . . 2 . . AOE 26 | . . . 26 . . Terrain Rammed . | . . . . . . Walls Destroyed . | . . . . . . Machines Disabled . | . . . . . . Actions | -11 -10 -10 -8 -7 -7 --------- Run | Yrd Mat Sub Mat Fac Low Total 5598 | 166 853 926 1703 975 975 Wait 220 | . 32 6 101 71 10 Move 4802 | 118 713 878 1314 838 941 Hop 8 | . . . . 6 2 Pick Up 76 | 5 15 8 42 3 3 Fast Attach 30 | 3 3 . 8 9 7 Attach 41 | 1 5 4 17 9 5 Detach 16 | . . . 4 8 4 Swap 34 | . 5 5 24 . . Drop 48 | . 4 2 38 1 3 Fire 300 | 39 76 23 155 7 . Melee . | . . . . . . Ram . | . . . . . . Kick 23 | . . . . 23 . Crush . | . . . . . . Escape Stasis . | . . . . . . Rewire . | . . . . . . Trap . | . . . . . . Miscellaneous . | . . . . . . Route ------- -11/Scrapyard -10/Materials (discovered 6 exits: [*Mat x3] / [*Min x2] / *Sub) -10/Subcaves (discovered 3 exits: *Mat x2 / Rec) -8/Materials (discovered 3 exits: *Fac x3) -7/Factory -7/Lower Caves History --------- Turn | Location | Event 2 | -11/Scrapyard | Met Revision 17 76 | -11/Scrapyard | Discovered new exit (range 8) 172 | -11/Scrapyard | Entered Materials 303 | -10/Materials | Build established: Mutant 341 | -10/Materials | Discovered new exit (range 15) 419 | -10/Materials | Discovered new exit (range 9) 788 | -10/Materials | Repaired Wheel? 788 | -10/Materials | Discovered new exit (range 8) 1003 | -10/Materials | Discovered new exit (range 5) 1030 | -10/Materials | Discovered new exit (range 9) 1136 | -10/Materials | Discovered new exit (range 7) 1144 | -10/Materials | Entered Subcaves 1159 | -10/Subcaves | Learned 2 Materials zone layouts 1170 | -10/Subcaves | Visited Clippyterm 1173 | -10/Subcaves | Identified exit to Materials 1173 | -10/Subcaves | Identified exit to Recycling 1173 | -10/Subcaves | Learned Factory emergency access door positions 1236 | -10/Subcaves | Core integrity fell below 50% 1545 | -10/Subcaves | Shifting Twisted Machinery released Sub. Monowheel 1547 | -10/Subcaves | Shifting Twisted Machinery released Flamer 1614 | -10/Subcaves | Shifting Twisted Machinery released Mak. Thermal Plating 1633 | -10/Subcaves | Shifting Twisted Machinery released Ripper 1753 | -10/Subcaves | Build established: Scavenger-Mutant 2013 | -10/Subcaves | Core integrity fell below 20% 2246 | -10/Subcaves | Entered Materials 2246 | -8/Materials | Evolved 4 slots: Propulsion x1, Utility x3 2567 | -8/Materials | Discovered new exit (range 10) 2584 | -8/Materials | Build established: Mutant 2781 | -8/Materials | Discovered new exit (range 14) 2812 | -8/Materials | Repaired Imp. Light Armor Plating? 3176 | -8/Materials | Repaired Imp. Light Armor Plating? 3925 | -8/Materials | Identified exit to Factory 4608 | -8/Materials | Core integrity fell below 50% 4631 | -8/Materials | Released all parts (5) 4656 | -8/Materials | Core integrity fell below 20% 4656 | -8/Materials | Discovered exit to Factory (range 10) 4660 | -8/Materials | Entered Factory 4660 | -7/Factory | Evolved 2 slots: Propulsion x1, Utility x1 4661 | -7/Factory | Lost 7 parts (2p2n1u2w) 4952 | -7/Factory | Core integrity fell below 50% 5013 | -7/Factory | Lost 3 parts (1p2n) 5120 | -7/Factory | Discovered new exit (range 5) 5121 | -7/Factory | Entered Lower Caves 5142 | -7/Lower Caves | Learned location of Zion (-7) 5207 | -7/Lower Caves | Core integrity fell below 20% 5241 | -7/Lower Caves | Lost 3 parts (1p1n1u) 5360 | -7/Lower Caves | Encountered a Warlord checkpoint 5366 | -7/Lower Caves | Entered a destroyed Warlord outpost 5412 | -7/Lower Caves | Build established: Sprinter 5427 | -7/Lower Caves | Destroyed by H-55 Commando with Assault Rifle Last Messages --------------- 05370_ Found 68 Matter. 05371_ Acquired Unknown Processor. 05371_ Identified Launcher Guidance Computer. 05372_ Acquired Core Analyzer. 05375_ Acquired derelict log, extracted data. World map confirmed: -7/Zion. 05382_ System corrupted: Matter fused (-10). 05386_ VTOL Module destroyed. 05392_ Connecting with WAR.Sys... >>Open Door Sealed Heavy Doors opened. Warning: Alt-Tabbing between programs is known to cause issues with some software requiring use of the Alt key, leaving a program unaware of the key's current state, and defaulting to off when the program checks. Keyboard commands such as panning the map may instead move Cogmind after an Alt-Tab. To prevent this possibility, consider tapping the Alt key again after returning to Cogmind in order to reset it. See the manual for more info. 05424_ Penetrated by Slug. 05427_ Cesium-ion Thruster destroyed. Map ----- +----------------------------------------------------+ | #?# ## ######????????? ????# ##??# | | ##?# ####???????????## ???# ##### | | #### ## #???????????# ???# # #?# | | # ### #???????????# #### # #?? | | ## ##?# ##???????????# ## # #?? | | ### ##?## !%! ##??????????# #?? | | ######??# [ #???????????????# ####?? | | ###### #???????????????### ####????? | | #?????????????????# #??????? | | #??????###?????#### ######## | | #????#? ##????# | | ### #????# ###### | | ###?## ##????# #####+##### | | ?????## ##????# #??? ????? | | ??????## ##??# ##### #??? ????? | | ??????## ## ##?# #????# #?? "???? | | ??????# ### h## #???????# #?? "???? | | ??????# #?# #????????# #? ??? | | ??????## ##### ##????????# #? ??? | | ???????# #?# ##?????????# #" "?? | | ?????### #?## ##?????????# #" "?? | | ###### #??### ####??????# #" "?? | | #????## #??????# #####+##### | | #?????##### ##??????# | | ##### #### #?????##### ##???????# | | #?# #??# #???### @#????????#### ### | | ### #### #??## ##??????????# ## | | #?## #??????????# # | | ######## ###ss s #?######???# # | | # #??????# ### ##### ### # | | # #??????? ## #?? ## | | # #??????? #### #### #???##### | | # #???????#???# ### ### ##??#### ####???????? | | # #???????????##??###??######??????###?????????## | | # #???????????????????????????????????????????? | | # #???????????????????????????????????????????? | | #????????????????????????????????????????????# | | #????????????????????????????????????????????# | | #????????????????????????????????????????????# | | # #????????????????????????????????????????????# | | # #??????????????????????????????????????####### | | #????????????????????????????????????### | | #????????????????????????????????????# "" | | #????????????????????????????????????# "" | | #????????????????????????????????????## "" | | ####?????????????????????????????????????#### | | ????????????????????????????????????????????## "" | | ?????????????????????????????????????????????# "" | | ?????????????????????????????????????????????# "" | | ?????????????????????????????????????????????## | +----------------------------------------------------+ Best States ------------- Heat Dissipation 34 Energy Generation 18 Energy Capacity 310 Matter Stores 300 Matter Capacity 300 Sight Range 16 Robot Scan Range 14 Terrain Scan Range 16 Terrain Scan Density 210 Jamming Range 12 Armor Coverage 300 Evasion (%) 64 Launcher Accuracy 20 Core Analysis 6 Recoil Reduction 3 Offensive Hacking 10 Item Schematics ----------------- Hacking Suite | -8/Materials | Scanalyzed Trap Scanner | -8/Materials | Scanalyzed Robot Schematics ------------------ None Fabricated ------------ Nothing Repaired ---------- Wheel | 27% | -10/Materials Imp. Light Armor Plating | 71% | -8/Materials Imp. Light Armor Plating | 50% | -8/Materials Alien Tech Used ----------------- None Achievements -------------- Close Call Let's See Who's Tougher Omniscient Cartographer Challenges ------------ None Game ------ Seed MatterIntegrityMultirail Manual? 0 Play Time 01:26:13 Cumulative 6.0 hours Start 2025.06.14 @ 16:41:26 End 2025.06.14 @ 18:12:08 Sessions 1 Manual Loads 0 Difficulty Rogue Special Mode None Game No. 6 Rogue 6 Adventurer 0 Explorer 0 Win Type - Total 0 Types 0/0/0/0/0/0/0/0/0/0 Lore% 2 Gallery% 7 Achievement% 14 Wizard Run 0 Options --------- Layout 0 ASCII 0 Keyboard 1 Movement Vi Keybinds 0 Fullscreen 1 Font 18/SmallcapsGlow Map View 76x50 Zoom Use 0% Tactical HUD 1 Map Filters NONE Filters NONE Steam 1 RUN: d3443a7b-385d-42ba-afbb-4857b9ca66bf